bitfinex/quotes_ETHUSD_20250424
["timestamp","ask_amount","ask_price","bid_price","bid_amount"]
[1745512020416,5.64688426,1770.9,1770.5,5.64802009]
[1745512020614,5.64688426,1770.9,1770.4,6.25648302]
[1745512020785,0.8048,1771.0,1770.4,0.6082]
[1745512020786,11.29470263,1770.8,1770.4,0.6082]
[1745512021109,0.8048,1771.0,1770.2,5.64892575]
[1745512021110,12.11046599,1770.7,1770.2,6.25712575]
[1745512021270,5.64812346,1770.5,1770.0,11.19678932]
[1745512021475,0.8151,1770.7,1770.2,1.6124994]
[1745512021682,6.46259796,1770.7,1770.2,0.6082]
[1745512021882,6.46259796,1770.7,1770.2,6.25709441]
[1745512022090,6.46259796,1770.7,1770.2,6.25706167]
[1745512022287,6.46259796,1770.7,1770.2,7.66009024]
[1745512022709,6.46259796,1770.7,1770.2,13.30897183]
[1745512022872,0.8151,1770.7,1770.3,11.29719265]
[1745512023083,6.46269597,1770.7,1770.2,5.64883883]
[1745512023784,0.8315,1770.4,1770.1,5.64925732]
[1745512024327,6.4801212,1770.4,1769.9,7.26238149]
[1745512024490,6.4801212,1770.4,1769.9,5.64988209]
[1745512024690,7.69296099,1770.4,1769.9,5.64988209]
[1745512024899,7.69296099,1770.4,1769.8,10.58920088]
[1745512025230,5.64886185,1770.3,1769.8,10.58911901]
[1745512025634,5.64886185,1770.3,1769.9,5.64999758]
[1745512025816,7.69291579,1770.4,1769.9,5.64999758]
[1745512025975,2.04433979,1770.4,1769.9,1.0042994]
[1745512026180,0.8315,1770.4,1770.1,5.64939267]
[1745512026981,0.8315,1770.4,1770.2,5.64885077]
[1745512027514,6.47050675,1770.6,1770.2,5.64885077]
[1745512028012,0.8227,1770.6,1770.2,5.64885077]
[1745512028318,6.47053322,1770.6,1770.2,5.64885077]
[1745512028614,7.98233693,1770.6,1770.2,5.64885077]
[1745512028785,5.64813617,1770.5,1770.0,5.64947827]
[1745512028983,5.64813617,1770.5,1770.1,5.64935581]
[1745512029293,7.9824825,1770.6,1770.1,5.64920587]
[1745512029811,13.63055238,1770.6,1770.1,5.64920587]
[1745512030017,1.36305524,1770.5,1770.1,5.64920587]
[1745512031021,5.64855334,1770.4,1770.0,5.64959589]
[1745512031182,6.47164412,1770.3,1769.8,11.19737226]
[1745512031502,12.12069466,1770.3,1769.8,6.25837226]
[1745512031705,6.47164412,1770.3,1769.8,11.9085202]
[1745512031902,7.6836683,1770.3,1769.9,5.65001626]
[1745512032080,2.03472418,1770.3,1769.9,5.65001626]
[1745512032285,7.6834922,1770.3,1769.9,5.65001626]
[1745512033615,13.33249323,1770.3,1769.8,6.25833885]
[1745512033826,7.6834922,1770.3,1769.8,6.25833885]
[1745512034136,7.6834922,1770.3,1769.8,11.90846495]
[1745512034293,7.6834922,1770.3,1769.8,11.90845896]
[1745512034489,13.33251236,1770.3,1769.8,5.65012233]
[1745512034696,7.6834922,1770.3,1769.8,11.30027073]
[1745512034896,7.6834922,1770.3,1769.9,5.64992934]
[1745512036027,7.6834922,1770.3,1769.8,7.37447934]
[1745512036328,5.64922949,1770.2,1769.8,5.65012233]
[1745512038398,11.29909194,1770.1,1769.6,5.65077071]
[1745512038604,0.7854,1769.9,1769.6,5.65077071]
[1745512038805,0.7854,1769.9,1769.6,5.6508179]
[1745512039036,0.7854,1769.9,1769.7,5.65056769]
[1745512039540,0.7854,1769.9,1769.7,5.65053265]
[1745512039750,0.7854,1769.9,1769.7,11.3010056]
[1745512039900,0.7854,1769.9,1769.7,5.65047295]
[1745512040741,0.7854,1769.9,1769.7,11.30093611]
[1745512040944,0.7854,1769.9,1769.7,5.65046316]
[1745512041240,0.7854,1769.9,1769.7,6.65476256]
[1745512041839,0.7854,1769.9,1769.8,5.65035597]
[1745512042039,0.7854,1769.9,1769.7,5.65046316]
[1745512042843,0.8205,1770.1,1769.8,5.65035597]
[1745512043639,6.47000454,1770.1,1769.7,5.65056141]
[1745512043842,6.47000454,1770.1,1769.7,5.65046065]
[1745512044038,6.47000454,1770.1,1769.7,5.65045808]
[1745512044345,6.47000454,1770.1,1769.7,11.300908]
[1745512044824,6.47000454,1770.1,1769.7,5.65044992]
[1745512045947,5.64986442,1770.0,1769.5,10.59011081]
[1745512046117,5.65015836,1769.9,1769.5,10.59011081]
[1745512046447,0.7838,1769.8,1769.5,10.59008525]
[1745512046607,0.7838,1769.8,1769.6,5.65090749]
[1745512048044,0.8124,1770.0,1769.8,5.65027011]
[1745512048343,0.8124,1770.0,1769.7,5.65054737]
[1745512048904,0.8124,1770.0,1769.6,5.65085966]
[1745512049157,7.47305869,1770.0,1769.6,5.65079294]
[1745512049668,7.47305869,1770.0,1769.6,11.30156392]
[1745512049818,7.47305869,1770.0,1769.6,5.65077098]
[1745512050129,7.47305869,1770.0,1769.6,5.65076882]
[1745512050736,0.8288,1769.8,1769.5,11.59441519]
[1745512050935,0.8288,1769.8,1769.5,13.37982088]
[1745512051158,0.8288,1769.8,1769.5,13.379815]
[1745512051518,0.8288,1769.8,1769.5,13.37979414]
[1745512051720,0.8288,1769.8,1769.6,5.65087937]
[1745512052423,0.8288,1769.8,1769.5,4.939]
[1745512052623,0.8288,1769.8,1769.6,5.65078945]
[1745512054943,9.29651888,1770.1,1769.6,5.65077296]
[1745512055134,6.43523402,1770.0,1769.6,11.30155025]
[1745512055535,6.43523402,1770.0,1769.6,5.65077296]
[1745512056265,5.65030293,1769.9,1769.5,12.14932473]
[1745512056568,6.29388322,1769.9,1769.5,10.59021684]
[1745512057177,0.8318,1769.8,1769.5,10.59021684]
[1745512057380,5.65077243,1769.7,1769.5,4.939]
[1745512057588,5.65077243,1769.7,1769.2,11.20027732]
[1745512057787,5.65114158,1769.6,1769.2,11.20027732]
[1745512058080,6.47612697,1769.5,1769.1,5.652402]
[1745512058291,5.65168283,1769.4,1769.0,11.91363722]
[1745512058460,5.65168283,1769.4,1769.0,5.65271397]
[1745512058664,6.47612697,1769.5,1769.1,5.65249932]
[1745512058871,7.68885525,1769.5,1769.1,5.65249932]
[1745512059074,2.03752828,1769.5,1769.2,5.65213501]
[1745512059279,0.8248,1769.5,1768.9,11.59742603]
[1745512059463,0.8248,1769.5,1769.1,5.65232767]
[1745512059660,6.47612868,1769.5,1769.1,5.65232767]
[1745512060289,0.8248,1769.5,1769.1,5.65232767]
[1745512061098,6.47619538,1769.5,1769.1,5.65232767]
[1745512061398,6.47614206,1769.5,1769.1,11.30471523]
[1745512061570,0.8248,1769.5,1769.1,5.65232767]
[1745512061773,6.47611584,1769.5,1769.1,5.65232767]
[1745512062303,6.47611584,1769.5,1769.1,11.30468926]
[1745512062469,6.47611584,1769.5,1769.1,5.65232767]
[1745512062879,0.8299,1769.7,1769.6,5.65099457]
[1745512063064,0.8143,1769.9,1769.7,5.6506562]
[1745512063870,0.8143,1769.9,1769.6,5.65088014]
[1745512064093,0.8143,1769.9,1769.7,5.65055638]
[1745512064598,0.8143,1769.9,1769.6,5.65081099]
[1745512064795,0.8143,1769.9,1769.6,6.37714203]
[1745512065905,0.8143,1769.9,1769.5,5.65112146]
[1745512066057,6.46447127,1769.9,1769.5,5.65112146]
[1745512066474,5.65035918,1769.8,1769.4,5.65148348]
[1745512066674,5.65035918,1769.8,1769.4,5.65144633]
[1745512066877,0.8143,1769.9,1769.6,5.65078436]
[1745512067168,0.8143,1769.9,1769.7,5.65045479]
[1745512067758,0.8143,1769.9,1769.6,5.65079078]
[1745512068299,0.8143,1769.9,1769.7,5.65052526]
[1745512069296,0.8143,1769.9,1769.7,5.65047098]
[1745512071165,8.64922089,1770.2,1769.7,5.65047098]
[1745512071365,0.8118,1770.1,1769.8,5.65025669]
[1745512071601,6.46122381,1770.1,1769.7,5.65047098]
[1745512073101,0.8118,1770.1,1769.7,5.65047098]
[1745512073404,6.46122923,1770.1,1769.7,5.65047098]
[1745512074272,12.11093105,1770.1,1769.7,5.65047098]
[1745512074486,13.62201146,1770.1,1769.7,5.65047098]
[1745512074807,5.64974073,1770.0,1769.6,5.65080176]
[1745512075007,5.64974073,1770.0,1769.6,11.30161542]
[1745512075804,5.64974073,1770.0,1769.7,5.65067362]
[1745512076307,0.7855,1769.8,1769.5,5.6511025]
[1745512076482,5.65071318,1769.7,1769.3,4.941]
[1745512076683,5.65152999,1769.5,1769.1,5.65255108]
[1745512076900,0.7855,1769.6,1769.2,5.65222826]
[1745512077074,0.7855,1769.6,1769.3,5.65190703]
[1745512077408,0.7855,1769.6,1769.3,5.65179615]
[1745512079480,0.7855,1769.6,1769.3,6.78218387]
[1745512079807,0.7855,1769.6,1769.5,5.65131393]
[1745512080110,0.7658,1769.8,1769.5,5.65131393]
[1745512080414,0.7658,1769.8,1769.5,5.65108553]
[1745512080613,5.7048,1770.0,1769.7,5.65067525]
[1745512080811,0.57048,1769.9,1769.6,5.65098592]
[1745512081112,0.7658,1770.0,1769.6,5.65076574]
[1745512081310,6.4155654,1770.0,1769.6,5.65076574]
[1745512081511,12.06556259,1770.0,1769.6,5.65076574]
[1745512081716,6.4155654,1770.0,1769.6,5.65076574]
[1745512081914,0.7658,1770.0,1769.5,1.6124994]
[1745512082093,0.7658,1770.0,1769.6,11.30198914]
[1745512082293,6.4156754,1770.0,1769.6,6.94244342]
[1745512082709,0.7658,1770.0,1769.6,6.9422856]
[1745512082901,6.41562189,1770.0,1769.6,6.94223211]
[1745512083304,0.7622,1769.6,1769.3,5.65167372]
[1745512083483,0.7622,1769.6,1769.4,5.6514149]
[1745512083685,0.7622,1769.8,1769.4,5.6514149]
[1745512083886,6.41267543,1769.8,1769.4,5.6514149]
[1745512084514,0.7622,1769.8,1769.5,5.65128468]
[1745512084687,0.7622,1769.8,1769.6,5.65088448]
[1745512085419,0.7622,1769.8,1769.5,5.65128468]
[1745512085721,0.7622,1769.8,1769.5,11.30237936]
[1745512086023,0.7622,1769.8,1769.5,5.65109468]
[1745512086200,0.7622,1769.8,1769.5,11.30219478]
[1745512086395,0.7622,1769.8,1769.5,5.65109468]
[1745512086601,0.7622,1769.8,1769.5,12.43245404]
[1745512086895,0.7622,1769.8,1769.5,1.13025453]
[1745512087098,6.41262112,1769.8,1769.4,5.65144636]
[1745512087298,0.7622,1769.8,1769.5,5.65130483]
[1745512087818,0.7622,1769.8,1769.5,11.30246711]
[1745512088118,0.7622,1769.8,1769.5,5.65116228]
[1745512088686,0.7622,1769.8,1769.5,5.65109549]
[1745512089820,0.7622,1769.8,1769.6,5.6509555]
[1745512090025,0.7622,1769.8,1769.5,5.65109549]
[1745512090590,5.64952479,1770.1,1769.6,5.6507677]
[1745512090820,0.7912,1770.0,1769.7,5.65039715]
[1745512091489,0.8204,1770.2,1769.9,5.65003672]
[1745512091919,0.8204,1770.2,1770.0,5.64970891]
[1745512092126,0.8204,1770.2,1769.9,5.65003672]
[1745512092710,0.8204,1770.2,1769.9,5.64980475]
[1745512093222,0.8204,1770.2,1769.9,11.29961508]
[1745512093814,0.7771,1770.4,1770.0,5.64949823]
[1745512094018,16.949,1770.7,1770.3,5.64876009]
[1745512094019,5.64766484,1770.7,1770.3,5.64876009]
[1745512094313,0.7771,1770.6,1770.3,5.64876009]
[1745512094715,4.939,1770.8,1770.5,5.64812199]
[1745512094916,0.7791,1770.8,1770.6,5.64769764]
[1745512095117,0.8237,1771.0,1770.9,5.64664424]
[1745512095338,0.8237,1771.6,1770.9,6.60796499]
[1745512095640,16.948,1772.3,1770.9,6.60796499]
[1745512095641,0.8237,1772.7,1771.7,5.64429643]
[1745512095851,0.27518876,1772.6,1772.3,1.0042994]
[1745512095996,0.27518876,1772.6,1772.5,5.64174894]
[1745512096195,1.0042994,1772.9,1772.3,0.42841654]
[1745512096446,5.64083564,1772.8,1772.2,5.64247544]
[1745512096749,5.64083564,1772.8,1772.3,0.66742259]
[1745512096750,5.64109352,1772.8,1772.3,0.66742259]
[1745512097048,5.64079422,1772.8,1771.9,1.04152919]
[1745512097197,5.64251961,1772.3,1771.9,0.10319834]
[1745512097402,1.12845869,1772.3,1772.0,0.52140896]
[1745512097722,5.6430224,1772.1,1771.9,0.10319834]
[1745512097925,5.64289344,1772.2,1771.6,0.6082]
[1745512098127,5.64336327,1772.0,1771.4,10.58109678]
[1745512098314,5.64421236,1771.8,1771.3,0.6082]
[1745512098656,5.64441314,1771.7,1771.3,0.72862864]
[1745512098953,5.64441314,1771.7,1771.3,0.10323329]
[1745512098954,6.45761314,1771.7,1771.3,0.10323329]
[1745512099112,0.8132,1771.7,1771.2,5.64573995]
[1745512099314,6.40548663,1772.1,1771.3,0.05645282]
[1745512099513,0.7623,1772.1,1771.7,5.64398639]
[1745512099730,0.7623,1772.1,1771.7,5.64420951]
[1745512099916,0.7623,1772.1,1771.8,5.64380327]
[1745512100338,0.7623,1772.1,1771.5,4.935]
[1745512100636,0.7623,1772.1,1771.3,5.64553202]
[1745512100637,5.64420904,1771.8,1771.3,5.64553202]
[1745512100800,11.34033462,1772.1,1771.4,5.64504914]
[1745512100801,5.64361281,1772.0,1771.4,5.64504914]
[1745512100994,8.64334085,1772.0,1771.5,6.20930041]
[1745512101202,0.7828,1772.5,1771.7,0.6082]
[1745512101438,6.42467505,1772.5,1772.0,5.6432041]
[1745512101639,0.7828,1772.5,1772.1,0.05642706]
[1745512101942,4.935,1773.2,1772.2,5.64251575]
[1745512101943,0.7828,1772.8,1772.2,5.64251575]
[1745512102159,1.42514355,1772.8,1772.0,4.935]
[1745512102360,0.7828,1772.8,1772.6,5.64129919]
[1745512102518,0.7828,1772.8,1772.4,4.95034345]
[1745512102519,0.7828,1772.8,1772.5,5.6416021]
[1745512102852,6.47180381,1773.1,1772.5,5.64155225]
[1745512103055,0.8318,1773.1,1772.4,4.95034345]
[1745512103230,0.8318,1773.1,1772.5,0.49503435]
[1745512103431,9.47178826,1773.1,1772.2,5.55854345]
[1745512103757,5.64015792,1773.0,1772.3,5.64214924]
[1745512103950,5.64068409,1772.9,1772.4,11.28385575]
[1745512104155,5.64068409,1772.9,1772.4,5.64182877]
[1745512104341,5.64068409,1772.9,1772.5,5.64172688]
[1745512104544,9.47177826,1773.1,1772.2,5.55854345]
[1745512104545,3.8318,1773.1,1772.2,5.55854345]
[1745512104747,3.8318,1773.1,1771.6,5.64457876]
[1745512104748,5.64152603,1772.6,1771.8,4.95034345]
[1745512105055,5.64247063,1772.3,1771.6,5.55854345]
[1745512105220,5.64243052,1772.3,1771.8,5.64371097]
[1745512105419,5.64301149,1772.2,1771.7,5.6442648]
[1745512105628,5.64272928,1772.2,1771.8,5.64373618]
[1745512105829,0.7525,1772.5,1772.1,5.64287888]
[1745512106034,5.64209713,1772.4,1771.9,5.6435016]
[1745512106235,9.39446646,1772.5,1772.0,5.64322647]
[1745512106236,9.39445528,1772.5,1772.0,5.64322647]
[1745512106458,5.64220819,1772.4,1772.0,5.6433341]
[1745512106658,6.39425656,1772.5,1772.1,5.64282829]
[1745512106962,6.39425656,1772.5,1772.1,5.64281337]
[1745512106963,0.7525,1772.5,1772.1,5.64281337]
[1745512107125,0.7525,1772.5,1772.1,6.20709471]
[1745512107637,6.39432297,1772.5,1772.1,6.20709471]
[1745512107836,6.39446567,1772.5,1772.1,0.56428134]
[1745512108224,0.7525,1772.5,1772.1,6.20720887]
[1745512108454,6.39430372,1772.5,1772.1,0.56428134]
[1745512108757,6.39424915,1772.5,1772.0,10.59357424]
[1745512109156,6.39424915,1772.5,1772.0,16.23667797]
[1745512109663,0.7525,1772.5,1772.2,5.64259206]
[1745512109861,0.7525,1772.5,1772.1,5.64289726]
[1745512110066,6.42793828,1772.8,1772.3,5.64208169]
[1745512110269,0.7871,1773.2,1772.7,5.64111242]
[1745512110564,0.7871,1773.2,1772.8,5.64053398]
[1745512110882,5.6389544,1773.4,1773.0,5.64003678]
[1745512111172,0.5,1773.5,1773.4,5.63888575]
[1745512111469,0.5,1773.5,1773.3,5.63907324]
[1745512111828,0.5,1773.5,1773.4,5.63888575]
[1745512112024,0.5,1773.5,1773.3,5.63902478]
[1745512112251,0.5,1773.5,1773.4,5.63888575]
[1745512112639,0.5,1773.5,1773.4,10.5892292]
[1745512113027,0.8274,1774.3,1773.6,5.63801387]
[1745512113235,5.63876926,1773.5,1773.3,1.59063354]
[1745512113434,5.64094007,1772.8,1772.2,6.25087329]
[1745512113634,0.56387693,1773.4,1772.2,0.6082]
[1745512113835,0.56387693,1773.4,1772.9,0.6082]
[1745512114067,3.7893,1773.8,1773.0,4.94367634]
[1745512114267,10.87453187,1774.2,1773.1,10.87783982]
[1745512114565,0.7616,1774.1,1773.1,5.29438772]
[1745512114739,3.7616,1774.1,1773.3,5.63899415]
[1745512114939,5.6382621,1773.6,1772.9,5.8462]
[1745512115153,5.63934489,1773.3,1772.9,5.8462]
[1745512115670,5.63899963,1773.4,1772.9,5.8462]
[1745512115974,5.63927184,1773.3,1772.9,11.48647511]
[1745512116265,6.44497125,1773.1,1772.6,6.24946044]
[1745512116465,6.44497125,1773.1,1772.7,5.6409883]
[1745512116771,5.64048776,1772.9,1772.6,1.23314604]
[1745512117070,5.64051028,1772.9,1772.5,5.64152739]
[1745512117278,6.44501291,1773.1,1772.1,0.6082]
[1745512117279,5.64016221,1773.0,1772.1,0.6082]
[1745512117447,5.64196171,1772.5,1772.1,0.6082]
[1745512117644,5.64166546,1772.6,1772.1,6.25106913]
[1745512117849,5.6416311,1772.6,1772.2,0.62510691]
[1745512118047,5.64098194,1772.8,1772.2,0.62510691]
[1745512118247,6.46508262,1773.2,1772.2,5.2934197]
[1745512118475,5.64006326,1773.1,1772.6,5.64116304]
[1745512118782,5.64006326,1773.1,1772.6,11.28235882]
[1745512118990,0.8254,1773.2,1772.6,5.8452]
[1745512119293,0.7891,1773.6,1773.2,5.63940191]
[1745512119444,6.42736665,1773.6,1773.2,1.18872857]
[1745512120386,5.63900546,1773.4,1773.1,5.237]
[1745512120787,5.63900546,1773.4,1772.9,11.48545558]
[1745512120971,5.63921916,1773.3,1772.9,11.4854728]
[1745512121585,5.63905704,1773.4,1773.0,0.51726697]
[1745512121793,5.63882636,1773.5,1773.1,5.63982088]
[1745512121974,9.42756001,1773.6,1773.1,7.33678507]
[1745512122289,6.42756001,1773.6,1773.1,7.33662243]
[1745512122445,5.63806049,1773.7,1773.3,5.63901612]
[1745512122650,5.63779071,1773.8,1773.3,5.63899521]
[1745512122850,0.7997,1773.9,1773.6,5.63823928]
[1745512123073,6.39856293,1774.1,1773.7,5.69410269]
[1745512123274,0.7619,1774.1,1773.7,5.63770107]
[1745512123486,0.7619,1774.1,1773.8,6.1548265]
[1745512123687,6.39761217,1774.4,1773.9,0.61548265]
[1745512123892,5.63737543,1773.9,1773.7,5.236]
[1745512124093,5.63649833,1774.2,1773.7,10.87372644]
[1745512124391,8.63630898,1774.3,1773.7,10.87393186]
[1745512124592,5.63663018,1774.2,1773.8,1.08739319]
[1745512124794,5.63667498,1774.1,1773.8,1.08739319]
[1745512125194,6.39763182,1774.4,1773.8,1.08739319]
[1745512125195,3.7619,1774.4,1773.9,0.51862066]
[1745512125499,5.63653595,1774.2,1773.9,0.51862066]
[1745512125698,0.7619,1774.4,1774.0,6.155447]
[1745512126019,5.63645851,1774.2,1774.0,0.51862066]
[1745512126205,5.63614943,1774.3,1774.1,0.51862066]
[1745512126393,5.63634314,1774.2,1774.1,0.51862066]
[1745512126575,5.63495044,1774.7,1774.2,5.63611629]
[1745512126901,5.63495044,1774.7,1774.1,0.51862066]
[1745512126902,5.63634314,1774.2,1774.1,0.51862066]
[1745512127465,6.40743402,1774.6,1774.1,0.51862066]
[1745512127673,0.7722,1774.6,1774.1,0.51862066]
[1745512127896,5.63549831,1774.5,1774.1,6.15520101]
[1745512128065,6.40738399,1774.6,1774.2,0.51862066]
[1745512128271,5.63550038,1774.5,1774.2,1.13412884]
[1745512128586,6.40738399,1774.6,1774.3,0.51862066]
[1745512128985,12.0427492,1774.6,1774.3,0.51862066]
[1745512129186,12.04271854,1774.6,1774.4,0.51862066]
[1745512129393,5.63539025,1774.5,1774.4,0.51862066]
[1745512130195,5.63600759,1774.4,1773.9,5.6371775]
[1745512130400,5.6359913,1774.4,1773.9,5.63708157]
[1745512130596,5.63625977,1774.3,1774.0,0.51822962]
[1745512130898,5.63636727,1774.2,1774.0,0.51822962]
[1745512131103,5.63613076,1774.3,1774.1,0.51822962]
[1745512131610,8.63554058,1774.5,1774.2,0.6082]
[1745512131781,8.63554058,1774.5,1774.2,1.12642962]
[1745512132187,5.63602547,1774.3,1773.9,6.24526642]
[1745512132406,0.7722,1774.6,1774.0,0.62452664]
[1745512132612,6.45027183,1774.9,1774.2,6.24454314]
[1745512132787,0.4103979,1775.0,1774.3,5.29034646]
[1745512132988,5.63423659,1774.9,1774.5,5.63521214]
[1745512133183,5.63422931,1774.9,1774.6,0.51772728]
[1745512133427,6.04431159,1775.0,1774.6,6.15265765]
[1745512133735,0.4103979,1775.0,1774.6,1.12592728]
[1745512133892,5.63421979,1774.9,1774.7,0.51772728]
[1745512134225,0.4103979,1775.0,1774.7,6.15238153]
[1745512134421,6.04427184,1775.0,1774.7,0.51772728]
[1745512134624,0.4103979,1775.0,1774.8,0.51772728]
[1745512135132,0.4103979,1775.0,1774.9,0.51772728]
[1745512135299,0.4103979,1775.0,1774.9,6.20818279]
[1745512135486,0.4103979,1775.0,1774.9,0.51772728]
[1745512135692,0.4103979,1775.0,1774.9,6.15184751]
[1745512135916,0.4103979,1775.0,1774.9,7.93865677]
[1745512137124,0.4103979,1775.0,1774.9,8.04168068]
[1745512138893,0.4103979,1775.0,1774.9,2.40756045]
[1745512139232,6.04420071,1775.0,1774.9,0.62075119]
[1745512139589,6.04420071,1775.0,1774.9,0.51772728]
[1745512139790,0.4103979,1775.0,1774.9,0.51772728]
[1745512140533,0.4103979,1775.0,1774.9,11.38384751]
[1745512140830,0.4103979,1775.0,1774.9,13.08566001]
[1745512141188,0.4103979,1775.0,1774.9,13.69386001]
[1745512141592,0.4103979,1775.0,1774.9,8.05973978]
[1745512141905,0.4103979,1775.0,1774.9,0.51772728]
[1745512142104,6.04420071,1775.0,1774.9,0.51772728]
[1745512142829,0.4103979,1775.0,1774.9,0.51772728]
[1745512143132,0.4103979,1775.0,1774.9,6.15184751]
[1745512143934,0.4103979,1775.0,1774.9,0.51772728]
[1745512144116,0.4103979,1775.0,1774.9,6.76704092]
[1745512144509,0.4103979,1775.0,1774.9,7.37524092]
[1745512145833,0.4103979,1775.0,1774.9,12.64224092]
[1745512146037,6.40689579,1775.7,1775.3,5.63267888]
[1745512146338,0.7753,1775.7,1775.4,5.63248864]
[1745512146548,7.93352972,1776.0,1775.6,5.63188639]
[1745512146549,0.8155,1776.0,1775.6,5.63188639]
[1745512146833,5.63096005,1775.9,1775.7,0.51772728]
[1745512147042,5.63096005,1775.9,1775.8,0.51772728]
[1745512147426,7.33203536,1775.9,1775.8,0.51772728]
[1745512147627,0.7832,1775.8,1774.9,18.22641732]
[1745512147942,5.63291555,1775.3,1774.9,29.1273524]
[1745512148341,5.63306683,1775.3,1774.9,29.12737309]
[1745512148842,0.8147,1775.5,1774.9,29.12737309]
[1745512148843,3.8147,1775.5,1774.9,0.10302391]
[1745512149046,6.44850281,1775.0,1774.9,0.10302391]
[1745512149339,5.63430668,1774.9,1774.5,5.63521258]
[1745512149539,5.63430668,1774.9,1774.4,11.5106834]
[1745512149707,5.63430668,1774.9,1774.5,5.63528161]
[1745512149908,0.8147,1775.0,1774.7,5.63457014]
[1745512150107,5.63380351,1775.0,1774.6,6.19840966]
[1745512150429,5.63465701,1774.8,1774.6,0.56352816]
[1745512150744,5.63493951,1774.7,1774.5,5.267]
[1745512150939,5.63464897,1774.8,1774.5,5.267]
[1745512151182,5.63464897,1774.8,1774.2,17.5062]
[1745512151183,5.63545093,1774.5,1774.2,17.5062]
[1745512151386,0.7733,1774.8,1774.2,17.5062]
[1745512151387,0.7733,1774.8,1774.2,24.11516364]
[1745512151550,5.63487439,1774.7,1774.3,5.63592298]
[1745512151749,5.6350746,1774.6,1774.2,24.11501723]
[1745512152193,0.7733,1774.8,1774.2,24.11503819]
[1745512152390,5.63477795,1774.7,1774.3,11.27165887]
[1745512152594,5.63521205,1774.6,1774.3,2.97505054]
[1745512152900,5.63519532,1774.6,1774.3,2.97505054]
[1745512153082,11.27054811,1774.6,1774.3,2.97505054]
[1745512153392,6.40800739,1774.8,1774.3,2.97505054]
[1745512153553,5.63485536,1774.7,1774.3,8.61091356]
[1745512153754,5.6347806,1774.7,1774.4,0.86109136]
[1745512153955,5.63560172,1774.5,1774.2,1.58084648]
[1745512154183,5.63572986,1774.4,1774.1,5.267]
[1745512154368,5.63607114,1774.3,1774.1,5.267]
[1745512154759,5.63557811,1774.5,1774.1,5.267]
[1745512155480,6.4077832,1774.8,1774.1,5.267]
[1745512155481,5.63581094,1774.4,1774.1,5.267]
[1745512155684,5.63557963,1774.5,1774.1,5.267]
[1745512155874,5.63512963,1774.6,1774.2,5.63627672]
[1745512156298,11.27048518,1774.6,1774.2,5.63627672]
[1745512156475,5.63540214,1774.5,1774.0,0.6082]
[1745512156675,5.63540214,1774.5,1774.1,5.63664116]
[1745512156870,5.63571725,1774.4,1774.1,7.35160671]
[1745512157196,5.63551027,1774.5,1774.1,5.63650196]
[1745512157377,11.27117037,1774.5,1774.1,5.63650196]
[1745512157559,5.63551027,1774.5,1774.1,11.27299252]
[1745512157761,5.63548883,1774.5,1774.1,5.63662772]
[1745512157959,5.63572329,1774.4,1774.1,6.78791049]
[1745512158190,5.63572329,1774.4,1774.1,1.15128277]
[1745512158391,0.8261,1774.4,1774.1,5.63655235]
[1745512158690,6.46184364,1774.4,1774.0,10.90485183]
[1745512158893,6.46184364,1774.4,1774.0,16.54163883]
[1745512159059,0.8261,1774.4,1774.0,10.90479281]
[1745512159258,6.46188206,1774.4,1774.1,1.09047928]
[1745512159493,0.8261,1774.4,1774.1,6.7270716]
[1745512159696,6.46181818,1774.4,1774.1,6.7270716]
[1745512159899,6.46181818,1774.4,1774.2,0.52135187]
[1745512160107,5.63602547,1774.3,1774.2,0.52135187]
[1745512160265,6.84580984,1774.3,1774.2,0.52135187]
[1745512160891,5.63691796,1774.1,1773.7,5.637803]
[1745512161401,5.63691796,1774.1,1773.8,0.52141736]
[1745512161695,5.63691796,1774.1,1773.9,0.52141736]
[1745512162061,0.8261,1774.4,1774.0,5.63688306]
[1745512162295,6.46194979,1774.4,1774.0,6.25265752]
[1745512162505,6.46194979,1774.4,1774.1,0.52141736]
[1745512162710,0.8261,1774.4,1774.1,0.52141736]
[1745512162877,6.46186105,1774.4,1774.2,0.52141736]
[1745512163076,0.8261,1774.4,1774.2,0.52141736]
[1745512163275,6.46181563,1774.4,1774.2,0.52141736]
[1745512163623,0.8261,1774.4,1774.3,0.52141736]
[1745512163908,6.46180784,1774.4,1774.3,0.52141736]
[1745512164606,0.8261,1774.4,1774.3,0.52141736]
[1745512164907,6.46180784,1774.4,1774.0,10.90475454]
[1745512165216,0.7645,1775.0,1774.5,6.24342505]
[1745512165417,0.7645,1775.0,1774.6,5.63489727]
[1745512165722,5.63430847,1774.9,1774.6,0.52033241]
[1745512166021,0.7645,1775.0,1774.7,0.52033241]
[1745512166172,6.3984987,1775.0,1774.7,0.52033241]
[1745512166374,0.7645,1775.0,1774.7,0.52033241]
[1745512166575,6.3983152,1775.0,1774.8,0.52033241]
[1745512167004,0.7645,1775.0,1774.6,6.15526182]
[1745512167233,6.39841572,1775.0,1774.6,0.52033241]
[1745512167437,7.03825729,1775.0,1774.6,6.15535564]
[1745512167575,1.40434157,1775.0,1774.6,0.52033241]
[1745512167779,6.3986153,1775.0,1774.7,0.52033241]
[1745512168204,12.03268287,1775.0,1774.7,0.52033241]
[1745512168400,0.7645,1775.0,1774.7,0.52033241]
[1745512168682,5.63419586,1774.9,1774.6,0.52033241]
[1745512169112,0.7645,1775.0,1774.6,0.52033241]
[1745512169419,0.7645,1775.0,1774.7,5.63463834]
[1745512170026,0.7645,1775.0,1774.6,6.73412013]
[1745512170027,0.7645,1775.0,1774.6,6.73403299]
[1745512170323,0.8115,1775.3,1774.9,5.63389677]
[1745512170654,4.93816231,1775.8,1775.1,5.63348543]
[1745512170655,0.8115,1775.8,1775.1,5.63348543]
[1745512170802,6.44281208,1775.8,1775.2,6.8608964]
[1745512171140,0.8115,1775.8,1775.5,5.63205605]
[1745512171437,0.8115,1775.8,1775.4,5.63236811]
[1745512171602,0.8115,1775.8,1775.4,5.63231049]
[1745512171803,6.44279983,1775.8,1775.5,0.51996037]
[1745512172003,0.8115,1775.8,1775.5,6.15217412]
[1745512172250,0.8115,1775.8,1775.5,0.51996037]
[1745512172548,0.8115,1775.8,1775.5,5.63220883]
[1745512172711,8.63070788,1776.0,1775.5,5.63220883]
[1745512172912,8.63070788,1776.0,1775.6,5.63183976]
[1745512172913,6.44770788,1776.0,1775.6,5.63183976]
[1745512173254,6.44770788,1776.0,1775.5,6.75848663]
[1745512173399,6.44770788,1776.0,1775.6,6.15205631]
[1745512173599,6.44770788,1776.0,1775.6,0.52017778]
[1745512173899,6.4478908,1776.0,1775.5,5.63202084]
[1745512174095,6.45686219,1775.9,1775.2,6.19625889]
[1745512174308,5.63180759,1775.7,1775.3,7.38107598]
[1745512174512,5.63143216,1775.8,1775.3,7.38091361]
[1745512174798,5.63253351,1775.4,1775.3,0.52045199]